bitfinex/quotes_SOLUSD_20220109
["timestamp","ask_amount","ask_price","bid_price","bid_amount"]
[1641760942565,23.8917,144.06,143.98,12.4004]
[1641760943593,49.51553303,144.06,143.98,12.4004]
[1641760944292,49.51553303,144.06,143.99,0.26]
[1641760944492,23.8917,144.06,143.99,0.26]
[1641760945096,23.8917,144.06,143.99,10.6746]
[1641760945294,24.5073,144.07,143.99,10.6746]
[1641760945697,24.5073,144.07,144.0,1.735]
[1641760945899,24.5073,144.07,143.99,0.26]
[1641760946097,24.5073,144.07,143.99,0.51]
[1641760946599,24.51724833,144.06,143.99,0.51]
[1641760946798,24.51724833,144.06,143.99,0.25]
[1641760947199,24.51724833,144.06,143.98,0.26]
[1641760947498,0.25,144.05,143.98,0.26]
[1641760947698,0.51,144.05,143.98,10.4149]
[1641760949000,0.51,144.05,143.95,76.43623395]
[1641760949200,1.736,144.04,143.95,74.5832]
[1641760949500,0.51,144.03,143.95,74.5832]
[1641760950102,23.38120187,144.02,143.95,74.5832]
[1641760950401,0.26,144.01,143.95,74.5832]
[1641760952106,23.38120187,144.02,143.95,74.5832]
[1641760952306,23.38120187,144.02,143.96,0.51]
[1641760952705,23.38120187,144.02,143.96,0.26]
[1641760952906,0.25,144.01,143.96,0.26]
[1641760953105,23.38120187,144.02,143.96,0.26]
[1641760953305,23.38120187,144.02,143.96,0.25]
[1641760953509,0.51,144.01,143.93,89.80833395]
[1641760953710,0.51,144.01,143.93,1.85303395]
[1641760953909,2.246,144.01,143.93,1.85303395]
[1641760954109,27.1369,144.01,143.93,1.85303395]
[1641760954712,27.1369,144.01,143.91,3.58903395]
[1641760954911,25.4009,144.01,143.92,3.25]
[1641760955211,25.4009,144.01,143.92,0.25]
[1641760955816,10.421,144.0,143.92,0.25]
[1641760956017,28.25880193,143.99,143.92,0.25]
[1641760956217,28.50880193,143.99,143.92,0.25]
[1641760956515,28.50880193,143.99,143.92,0.51]
[1641760956717,52.21560193,143.99,143.92,0.51]
[1641760957518,52.21560193,143.99,143.92,0.25]
[1641760957718,51.70560193,143.99,143.92,0.51]
[1641760959021,0.25,143.98,143.92,0.25]
[1641760959421,0.51,143.98,143.92,0.25]
[1641760959721,0.25,143.98,143.92,0.25]
[1641760959921,51.70560193,143.99,143.92,0.51]
[1641760960123,51.70560193,143.99,143.93,1.736]
[1641760961427,23.7068,143.99,143.94,0.25]
[1641760961925,23.7068,143.99,143.94,0.26]
[1641760962424,23.7068,143.99,143.94,0.51]
[1641760962826,23.7068,143.99,143.94,0.25]
[1641760963429,23.7068,143.99,143.93,0.51]
[1641760964432,23.7068,143.99,143.93,0.26]
[1641760964732,25.38267956,143.98,143.91,1.85303395]
[1641760964932,25.89267956,143.98,143.91,1.85303395]
[1641760967735,25.38267956,143.98,143.92,0.26]
[1641760967935,23.7068,143.99,143.92,0.51]
[1641760968535,23.7068,143.99,143.92,2.246]
[1641760968936,23.7068,143.99,143.93,22.92131302]
[1641760969361,23.7068,143.99,143.94,0.51]
[1641760971563,23.7068,143.99,143.94,10.9282]
[1641760971965,52.48684182,144.02,143.94,10.9282]
[1641760972163,3.25,144.01,143.94,10.9282]
[1641760973063,3.25,144.01,143.94,0.51]
[1641760973263,3.25,144.01,143.94,0.26]
[1641760973464,3.25,144.01,143.93,1.736]
[1641760973664,0.26,144.0,143.93,1.736]
[1641760973867,3.25,144.01,143.93,1.736]
[1641760974268,0.25,144.01,143.93,12.1549]
[1641760974569,0.51,144.01,143.93,12.1549]
[1641760974767,0.51,144.01,143.94,0.25]
[1641760974971,0.25,144.01,143.94,0.51]
[1641760975172,75.37164182,144.02,143.94,37.43384907]
[1641760975372,75.37164182,144.02,143.95,1.986]
[1641760975772,75.37164182,144.02,143.96,0.26]
[1641760976779,75.37164182,144.02,143.96,10.6767]
[1641760976973,75.37164182,144.02,143.97,0.25]
[1641760978573,75.37164182,144.02,143.96,10.6767]
[1641760980272,0.25,144.01,143.96,10.6767]
[1641760980972,0.25,144.01,143.96,0.26]
[1641760981174,0.25,144.01,143.95,0.26]
[1641760981372,75.37164182,144.02,143.95,0.51]
[1641760982773,75.37164182,144.02,143.95,10.9275]
[1641760983072,0.25,144.01,143.95,10.6775]
[1641760983872,75.37164182,144.02,143.96,0.25]
[1641760984273,75.37164182,144.02,143.96,3.25]
[1641760984474,75.37164182,144.02,143.96,13.6669]
[1641760984876,46.899,144.02,143.96,13.6669]
[1641760985473,46.899,144.02,143.96,13.4169]
[1641760985873,0.25,144.01,143.96,13.4169]
[1641760986073,46.899,144.02,143.96,13.4169]
[1641760987877,46.899,144.02,143.97,0.51]
[1641760988077,92.40810179,144.06,143.97,10.9262]
[1641760988277,0.25,144.04,143.97,10.9262]
[1641760989077,27.95601622,144.04,143.97,10.9262]
[1641760989277,27.95601622,144.04,143.97,10.6762]
[1641760990580,27.70601622,144.04,143.97,10.6762]
[1641760991785,0.26,144.03,143.96,3.0]
[1641760992782,0.26,144.03,143.95,3.0]
[1641760992982,0.51,144.03,143.95,0.25]
[1641760993185,0.51,144.03,143.94,3.58903395]
[1641760993186,30.82360712,144.01,143.94,3.58903395]
[1641760993384,0.51,144.0,143.94,1.85303395]
[1641760993983,0.51,144.0,143.93,1.85303395]
[1641760994386,0.51,144.0,143.94,0.25]
[1641760994684,24.1122,144.0,143.94,0.25]
[1641760995720,25.8482,144.0,143.93,1.85303395]
[1641760996120,25.8482,144.0,143.92,1.85303395]
[1641760996319,25.8482,144.0,143.92,2.11303395]
[1641760996520,24.1122,144.0,143.92,12.53283395]
[1641760997923,24.1122,144.0,143.92,2.11303395]
[1641760998721,24.1122,144.0,143.92,1.85303395]
[1641760998922,24.1822,144.0,143.92,1.85303395]
[1641760999123,3.0,143.99,143.92,1.85303395]
[1641760999322,1.736,143.98,143.9,3.58903395]
[1641760999524,2.246,143.98,143.9,3.58903395]
[1641760999822,29.5871588,143.97,143.9,3.58903395]
[1641761000024,0.26,143.96,143.9,1.85303395]
[1641761000223,1.736,143.95,143.9,1.85303395]
[1641761000524,27.4780236,143.94,143.9,1.85303395]
[1641761000723,27.4780236,143.94,143.89,1.85303395]
[1641761001425,37.9034236,143.94,143.89,1.85303395]
[1641761001625,39.6404236,143.94,143.87,1.85303395]
[1641761001822,23.6862,143.93,143.87,1.85303395]
[1641761002225,26.30127777,143.91,143.86,1.85303395]
[1641761003123,26.30127777,143.91,143.85,1.85303395]
[1641761003525,0.25,143.9,143.85,1.85303395]
[1641761004123,0.25,143.9,143.84,3.59003395]
[1641761004325,0.25,143.9,143.85,0.26]
[1641761005326,3.51,143.92,143.85,0.26]
[1641761005627,0.51,143.92,143.85,0.26]
[1641761005823,0.51,143.92,143.85,0.51]
[1641761006224,0.51,143.92,143.85,0.26]
[1641761006426,0.51,143.92,143.85,0.51]
[1641761008026,1.737,143.94,143.86,28.11412998]
[1641761008224,23.2555,143.97,143.86,28.11412998]
[1641761008426,0.26,143.96,143.87,0.51]
[1641761008628,23.2555,143.97,143.87,0.51]
[1641761008925,23.2555,143.97,143.87,13.9334]
[1641761009124,23.2555,143.97,143.88,1.78082586]
[1641761009325,23.2555,143.97,143.89,23.62832659]
[1641761009528,23.2555,143.97,143.9,1.736]
[1641761009926,23.2555,143.97,143.91,0.51]
[1641761010627,0.25,143.96,143.9,1.736]
[1641761011028,0.25,143.96,143.88,3.58903395]
[1641761011230,23.2555,143.97,143.89,0.25]
[1641761011628,23.2555,143.97,143.9,1.736]
[1641761011829,21.2555,143.97,143.9,1.736]
[1641761012027,21.2555,143.97,143.91,0.25]
[1641761013429,21.2555,143.97,143.91,0.51]
[1641761014030,21.2555,143.97,143.91,25.02483625]
[1641761014431,21.2555,143.97,143.91,0.51]
[1641761014830,21.2555,143.97,143.91,0.26]
[1641761015430,0.25,143.96,143.91,0.26]
[1641761015832,21.2555,143.97,143.91,0.26]
[1641761016334,21.2555,143.97,143.91,0.51]
[1641761016534,31.66979972,143.96,143.91,0.51]
[1641761016732,31.66979972,143.96,143.89,12.158]
[1641761016733,31.66979972,143.96,143.89,10.422]
[1641761016932,31.66979972,143.96,143.9,0.25]
[1641761017135,31.66979972,143.96,143.9,1.986]
[1641761017534,21.2555,143.97,143.9,1.986]
[1641761017733,21.2555,143.97,143.9,10.6712]
[1641761017934,21.2555,143.97,143.91,0.26]
[1641761018536,21.2555,143.97,143.9,0.51]
[1641761018733,21.2555,143.97,143.9,0.26]
[1641761018936,27.80039509,143.96,143.9,0.26]
[1641761019938,27.80039509,143.96,143.9,0.51]
[1641761020336,27.80039509,143.96,143.9,2.36303395]
[1641761020537,0.25,143.95,143.9,1.85303395]
[1641761021038,0.51,143.95,143.9,1.85303395]
[1641761021441,0.51,143.95,143.88,12.27513395]
[1641761021866,0.51,143.95,143.89,0.26]
[1641761023667,0.51,143.96,143.89,10.932]
[1641761024669,0.25,143.96,143.89,10.932]
[1641761027974,0.25,143.96,143.89,12.78503395]
[1641761030078,0.25,143.96,143.9,3.0]
[1641761030779,0.25,143.96,143.89,12.53503395]
[1641761031580,0.25,143.96,143.89,10.682]
[1641761032680,0.25,143.96,143.89,12.53503395]
[1641761033283,0.25,143.96,143.89,1.85303395]
[1641761033483,0.58,143.96,143.89,1.85303395]
[1641761033682,1.737,143.95,143.89,1.85303395]
[1641761033883,0.51,143.94,143.89,1.85303395]
[1641761034082,1.737,143.93,143.86,1.85303395]
[1641761034485,0.51,143.92,143.86,1.85303395]
[1641761034885,0.25,143.92,143.86,1.85303395]
[1641761035486,3.51,143.93,143.87,0.26]
[1641761035685,3.51,143.93,143.86,1.85303395]
[1641761035887,3.51,143.93,143.87,0.26]
[1641761036087,13.9357,143.93,143.87,1.85303395]
[1641761036685,13.9357,143.93,143.86,1.85303395]
[1641761036884,15.6727,143.93,143.86,1.85303395]
[1641761037487,15.6727,143.93,143.85,1.85303395]
[1641761037687,12.6727,143.93,143.85,1.85303395]
[1641761037889,12.4127,143.93,143.86,0.26]
[1641761038087,10.6757,143.93,143.86,0.26]
[1641761038288,0.25,143.93,143.86,2.11303395]
[1641761038890,0.25,143.93,143.86,32.01504197]
[1641761039190,0.25,143.93,143.86,2.11303395]
[1641761039390,9.94,143.94,143.87,0.25]
[1641761040194,0.26,143.93,143.86,2.11303395]
[1641761040394,28.57020499,143.95,143.86,2.11303395]
[1641761040618,30.30720499,143.95,143.86,3.85003395]
[1641761040819,0.25,143.94,143.87,0.25]
[1641761041018,0.25,143.94,143.87,2.10303395]
[1641761041221,0.07,143.93,143.87,1.85303395]
[1641761041620,0.07,143.93,143.86,3.59003395]
[1641761042222,0.07,143.93,143.86,1.737]
[1641761042420,1.737,143.92,143.83,12.27873395]
[1641761042621,1.737,143.92,143.84,3.26]
[1641761042820,0.25,143.91,143.84,3.26]
[1641761043521,0.25,143.91,143.84,0.26]
[1641761043924,0.25,143.91,143.84,10.6855]
[1641761044621,0.25,143.91,143.84,12.46632586]
[1641761053035,0.25,143.91,143.84,12.20632586]
[1641761053237,0.51,143.91,143.83,1.85303395]
[1641761053438,1.737,143.9,143.83,1.85303395]
[1641761053937,0.51,143.89,143.83,1.85303395]
[1641761054138,1.737,143.88,143.83,1.85303395]
[1641761054339,0.25,143.87,143.81,78.0406]
[1641761055338,0.51,143.87,143.81,78.0406]
[1641761055742,0.51,143.87,143.81,76.3036]
[1641761059673,0.51,143.87,143.81,76.3236]
[1641761059872,0.51,143.87,143.81,76.3436]
[1641761060277,0.51,143.88,143.81,76.3436]
[1641761060474,0.25,143.88,143.82,0.26]
[1641761060674,0.25,143.88,143.82,2.247]
[1641761061775,0.51,143.88,143.82,1.997]
[1641761062779,2.247,143.88,143.82,0.26]
[1641761063680,0.51,143.88,143.82,0.26]
[1641761063883,10.9386,143.88,143.82,0.26]
[1641761064884,0.51,143.88,143.82,0.28]
[1641761065085,0.51,143.88,143.82,0.3]
[1641761066187,10.9386,143.88,143.82,0.3]
[1641761066686,10.6786,143.88,143.82,0.3]
[1641761067890,10.6786,143.88,143.82,0.55]
[1641761068387,0.25,143.88,143.82,0.55]
[1641761069089,0.25,143.88,143.82,0.3]
[1641761069592,0.25,143.88,143.82,0.55]
[1641761069993,0.25,143.88,143.82,2.40303395]
[1641761071322,0.51,143.88,143.82,1.89303395]
[1641761072223,0.51,143.88,143.82,0.04]
[1641761072826,10.9388,143.88,143.82,0.04]
[1641761073929,24.613,143.87,143.82,0.04]
[1641761074128,35.0423,143.87,143.82,0.04]
[1641761074328,2.247,143.86,143.82,0.04]
[1641761074927,3.0,143.85,143.82,0.04]
[1641761075427,46.50929073,143.84,143.82,0.04]
[1641761076029,17.00459893,143.84,143.82,0.04]
[1641761076230,16.75459893,143.84,143.82,0.04]
[1641761077030,10.4318,143.84,143.82,0.04]
[1641761077232,36.04041479,143.86,143.82,0.04]
[1641761077431,3.03059896,143.84,143.82,0.04]
[1641761078434,24.7572,143.85,143.82,0.04]
[1641761078734,6.06279893,143.84,143.82,0.04]
[1641761079334,0.25,143.83,143.82,0.04]
[1641761079535,71.318,143.83,143.82,0.04]
[1641761080337,91.6914,143.83,143.82,0.04]
[1641761080541,94.6914,143.83,143.82,0.04]
[1641761080740,55.0,143.82,143.75,1.85303395]
[1641761080937,2.318,143.81,143.74,1.85303395]
[1641761081143,25.8711,143.81,143.74,1.85303395]
[1641761081437,26.36354734,143.8,143.74,1.85303395]
[1641761081638,10.436,143.78,143.74,1.85303395]
[1641761082037,10.436,143.78,143.72,1.85303395]
[1641761082038,0.51,143.77,143.72,1.85303395]
[1641761082238,0.51,143.77,143.72,4.85303395]
[1641761082437,0.51,143.77,143.72,1.85303395]
[1641761082639,0.25,143.77,143.72,1.85303395]
[1641761082841,7.017,143.77,143.72,1.85303395]
[1641761083139,7.017,143.77,143.72,0.85303395]
[1641761083342,0.26,143.76,143.71,3.0]
[1641761083540,10.6974,143.76,143.71,3.0]
[1641761083740,10.6974,143.76,143.69,73.4758]
[1641761084039,0.25,143.75,143.69,73.4758]
[1641761084840,10.6881,143.75,143.69,73.4758]
[1641761085040,10.4381,143.75,143.69,73.4758]
[1641761085241,23.6993,143.76,143.69,73.4758]
[1641761085642,23.4393,143.76,143.7,0.26]
[1641761085843,23.1893,143.76,143.7,0.51]
[1641761086040,43.4106,143.79,143.7,0.51]
[1641761086242,69.6709,143.79,143.7,10.9457]
[1641761087343,10.686,143.78,143.7,10.9457]
[1641761087541,10.946,143.78,143.7,10.9457]
[1641761087941,10.946,143.78,143.7,0.25]
[1641761088944,10.946,143.78,143.7,0.51]
[1641761089145,10.946,143.78,143.7,0.26]
[1641761089745,35.0117,143.77,143.7,0.26]
[1641761089945,0.51,143.76,143.7,0.26]
[1641761090648,0.51,143.76,143.7,0.51]
[1641761091153,12.6864,143.76,143.69,73.4758]
[1641761091749,10.9474,143.76,143.69,73.4758]
[1641761091947,12.6864,143.76,143.69,73.4758]
[1641761092347,10.9474,143.76,143.69,0.1]
[1641761092547,22.6631,143.75,143.69,0.1]
[1641761092947,0.26,143.74,143.69,0.1]
[1641761094250,0.51,143.74,143.69,0.1]
[1641761095347,0.26,143.74,143.69,0.1]
[1641761095847,0.51,143.74,143.69,0.1]
[1641761096775,0.25,143.74,143.69,0.1]
[1641761096978,33.1013,143.75,143.69,0.1]
[1641761097178,33.1013,143.75,143.69,0.36]
[1641761097778,33.1013,143.75,143.69,0.1]
[1641761098380,24.36341288,143.74,143.69,0.1]
[1641761098579,10.4391,143.74,143.69,0.1]
[1641761100384,0.51,143.73,143.69,0.1]
[1641761100583,10.4408,143.72,143.69,0.1]
[1641761100784,6.06279893,143.71,143.69,0.1]
[1641761101185,0.51,143.73,143.69,0.1]
[1641761101385,0.25,143.73,143.69,0.1]
[1641761101585,3.51,143.74,143.69,0.1]
[1641761101788,10.4401,143.73,143.69,0.1]
[1641761101985,0.26,143.72,143.69,0.1]
[1641761102187,3.03219997,143.71,143.69,0.1]
[1641761102394,62.25,143.7,143.69,0.1]
[1641761102588,64.249,143.7,143.69,0.1]
[1641761103390,87.8478,143.7,143.69,0.1]
[1641761103589,25.8478,143.7,143.69,0.1]
[1641761103789,3.03219997,143.71,143.69,0.1]
[1641761104088,24.9479,143.76,143.69,0.1]
[1641761104291,9.94,143.75,143.69,0.1]
[1641761105089,24.9479,143.76,143.69,10.5364]
[1641761105291,115.1443,143.82,143.69,12.31722586]
[1641761105492,36.1908,143.82,143.7,0.51]
[1641761105992,36.1908,143.82,143.71,27.63323088]
[1641761106193,36.1908,143.82,143.76,10.4314]
[1641761106392,34.4518,143.82,143.76,10.4314]
[1641761106591,9.94,143.82,143.76,10.4314]
[1641761107394,0.26,143.81,143.74,10.4324]
[1641761108497,9.94,143.82,143.74,10.4324]
[1641761108696,25.8377,143.83,143.74,12.21322586]
[1641761108898,24.0997,143.83,143.75,0.25]
[1641761109098,1.738,143.84,143.79,10.4292]
[1641761109301,9.94,143.87,143.79,10.4292]
[1641761109498,9.94,143.87,143.8,0.25]
[1641761109798,9.94,143.87,143.75,0.51]
[1641761109999,22.75639907,143.86,143.75,0.25]
[1641761110701,0.07,143.85,143.75,0.25]
[1641761110901,0.33,143.85,143.8,10.4283]
[1641761111701,24.32439907,143.86,143.8,10.4283]
[1641761111903,22.58639907,143.86,143.8,10.4283]
[1641761112403,0.25,143.85,143.8,10.4283]
[1641761113003,1.988,143.85,143.78,10.4294]
[1641761113403,0.25,143.85,143.79,3.0]
[1641761113604,0.25,143.85,143.78,10.4294]
[1641761114304,0.25,143.85,143.79,10.6787]
[1641761114505,0.25,143.85,143.79,10.9387]
[1641761114706,22.58639907,143.86,143.79,10.9387]
[1641761114906,22.58639907,143.86,143.79,10.6887]
[1641761115529,33.01679907,143.86,143.74,24.7252]
[1641761115731,1.738,143.85,143.71,3.7046672]
[1641761115928,35.7501,143.85,143.71,3.7046672]
[1641761116533,3.0,143.84,143.72,24.8381935]
[1641761116731,30.19461609,143.83,143.72,24.8381935]
[1641761117032,39.13981609,143.83,143.74,0.25]
[1641761117429,62.75541609,143.83,143.74,0.25]
[1641761117930,62.75541609,143.83,143.74,0.51]
[1641761118130,62.75541609,143.83,143.75,29.40137105]
[1641761118332,23.8656,143.83,143.75,39.83327105]
[1641761118729,23.8656,143.83,143.76,0.26]
[1641761118932,12.501012,143.8,143.76,0.26]
[1641761119331,12.501012,143.8,143.78,10.4299]
[1641761121132,15.53161096,143.8,143.78,10.4299]
[1641761121333,12.501012,143.8,143.78,10.4299]
[1641761122735,12.501012,143.8,143.78,35.2680935]
[1641761122935,12.501012,143.8,143.79,34.51]
[1641761123137,12.501012,143.8,143.79,44.937]
[1641761123336,1.2e-05,143.8,143.79,46.71782586]
[1641761123735,1.2e-05,143.8,143.79,47.937]
[1641761124336,1.2e-05,143.8,143.79,44.937]
[1641761124536,1.2e-05,143.8,143.79,10.937]
[1641761126839,1.2e-05,143.8,143.79,14.007]
[1641761127844,1.2e-05,143.8,143.79,15.78782586]
[1641761128139,1.2e-05,143.8,143.79,71.78782586]
[1641761130444,1.2e-05,143.8,143.79,15.78782586]
[1641761131145,1.2e-05,143.8,143.79,42.78782586]
[1641761132045,1.2e-05,143.8,143.79,14.007]
[1641761133245,1.2e-05,143.8,143.79,11.007]
[1641761133445,1.2e-05,143.8,143.79,10.747]
[1641761133848,23.725,143.87,143.79,10.747]
[1641761134451,23.725,143.87,143.79,10.497]
[1641761134649,23.725,143.87,143.79,0.07]
[1641761134853,1.738,143.86,143.78,0.25]
[1641761135052,1.738,143.86,143.77,27.31184719]
[1641761135251,0.25,143.85,143.77,27.31184719]
[1641761135851,0.25,143.86,143.78,0.51]
[1641761136850,0.25,143.86,143.8,10.4284]
[1641761137252,0.25,143.86,143.81,0.26]
[1641761137851,23.475,143.87,143.81,0.51]
[1641761140652,0.25,143.86,143.78,91.12772586]
[1641761141052,0.25,143.86,143.79,0.51]
[1641761142757,0.25,143.86,143.79,10.9392]
[1641761142954,3.25,143.86,143.79,10.9392]
[1641761144155,3.25,143.86,143.79,10.6892]
[1641761144156,28.05734327,143.86,143.79,10.6892]
[1641761144556,28.05734327,143.86,143.79,0.26]
[1641761144759,23.475,143.87,143.79,0.26]
[1641761145057,15.59920358,143.91,143.79,0.26]
[1641761145259,26.3076,143.9,143.8,1.78082586]
[1641761145457,26.3076,143.9,143.81,0.26]
[1641761145860,52.57156732,143.9,143.81,0.26]
[1641761146158,52.57156732,143.9,143.81,3.0]
[1641761146357,52.57156732,143.9,143.84,10.4256]
[1641761146559,54.30856732,143.9,143.84,10.4256]
[1641761147361,0.25,143.89,143.84,10.4256]
[1641761148460,26.3076,143.9,143.84,10.4256]
[1641761149159,26.3076,143.9,143.82,0.51]
[1641761149160,26.3076,143.9,143.82,10.9365]
[1641761149360,53.83814823,143.9,143.82,10.9365]
[1641761149762,0.25,143.89,143.82,10.9365]
[1641761149959,0.25,143.89,143.82,0.51]
[1641761150161,0.25,143.89,143.82,0.26]
[1641761150364,20.6177,143.89,143.79,10.4293]
[1641761150562,1.737,143.88,143.79,10.4293]
[1641761150765,1.737,143.88,143.8,3.0]
[1641761150962,0.25,143.87,143.78,78.9171]
[1641761151362,10.4301,143.86,143.79,29.22868246]
[1641761151763,0.25,143.85,143.8,3.26]
[1641761152166,0.25,143.85,143.79,29.22868246]
[1641761152367,0.25,143.85,143.78,78.9171]
[1641761152766,0.25,143.85,143.78,89.347]
[1641761152969,22.8818,143.85,143.78,89.347]
[1641761153170,22.8818,143.85,143.79,3.0]
[1641761153371,22.8818,143.85,143.8,0.26]
[1641761153570,22.6318,143.85,143.8,0.26]
[1641761153768,9.94,143.89,143.8,0.51]
[1641761153968,24.393,143.89,143.82,10.4268]
[1641761154173,24.393,143.89,143.81,26.63404463]
[1641761154368,24.393,143.89,143.82,0.51]
[1641761154971,0.25,143.88,143.82,0.51]
[1641761155673,34.8209,143.89,143.82,0.51]
[1641761156472,11.677,143.92,143.82,0.51]
[1641761156673,97.7292,143.93,143.82,0.51]
[1641761156674,122.5034,143.93,143.82,25.65772586]
[1641761157099,3.92120358,143.94,143.83,0.07]
[1641761157500,3.92120358,143.94,143.84,1.78082586]
[1641761157704,3.92120358,143.94,143.88,10.4215]
[1641761157902,27.65900358,143.97,143.89,24.86428681]
[1641761159104,23.7378,143.97,143.89,24.86428681]
[1641761159502,23.7378,143.97,143.89,0.51]
[1641761159702,23.7378,143.97,143.89,10.4215]
[1641761159903,23.7378,143.97,143.9,0.51]
[1641761160704,23.7378,143.97,143.9,0.25]
[1641761161105,23.7378,143.97,143.89,0.26]
[1641761161106,23.7378,143.97,143.89,0.51]
[1641761161705,23.7378,143.97,143.9,10.4206]
[1641761161907,23.7378,143.97,143.91,0.25]
[1641761163207,0.25,143.96,143.88,3.0]
[1641761163412,0.25,143.96,143.87,78.2906]
[1641761164813,10.4239,143.95,143.88,0.26]
[1641761165010,1.737,143.98,143.88,3.51]
[1641761165208,26.67200358,144.02,143.89,3.51682586]
[1641761165407,26.67200358,144.02,143.9,0.51]
[1641761165608,22.7508,144.02,143.91,1.736]
[1641761166010,26.12796089,144.01,143.92,3.51]
[1641761166209,26.12796089,144.01,143.92,10.4191]
[1641761166412,26.12796089,144.01,143.89,1.736]
[1641761166709,26.0164,144.0,143.88,34.6564]
[1641761167008,0.26,143.99,143.89,3.26]
[1641761167507,25.22319178,143.98,143.89,0.26]
[1641761167708,35.64559178,143.98,143.89,0.26]
[1641761167910,0.25,143.97,143.89,0.26]
[1641761168309,24.7679,143.97,143.89,0.26]
[1641761168516,24.5179,143.97,143.89,0.51]
[1641761168713,24.5179,143.97,143.89,37.39489329]
[1641761169211,10.4216,143.99,143.9,1.736]
[1641761169413,10.4216,143.99,143.91,0.51]
[1641761170011,42.02312762,143.99,143.91,0.26]
[1641761170910,42.02312762,143.99,143.9,0.51]
[1641761171113,41.02312762,143.99,143.9,0.51]
[1641761171314,41.02312762,143.99,143.9,10.9311]
[1641761172917,41.02312762,143.99,143.9,12.71192586]
[1641761173719,41.02312762,143.99,143.9,10.9311]
[1641761178020,99.508,144.0,143.9,10.9311]
[1641761178220,99.508,144.0,143.9,12.71192586]
[1641761178923,27.27037482,143.99,143.9,12.71192586]
[1641761179321,37.69147482,143.99,143.9,12.71192586]
[1641761180927,10.6719,143.98,143.9,0.51]
[1641761181127,22.9474,143.97,143.9,0.26]
[1641761181330,22.9474,143.97,143.89,0.25]
[1641761181534,22.9474,143.97,143.88,34.6828]
[1641761181728,0.25,143.96,143.87,78.2906]
[1641761181931,29.73647373,143.96,143.88,0.25]
[1641761182128,24.8593,143.95,143.88,0.25]
[1641761182329,10.4246,143.94,143.88,0.25]
[1641761182530,26.81153433,143.93,143.87,78.2906]
[1641761183761,24.8593,143.95,143.88,0.25]
[1641761184363,24.8593,143.95,143.88,2.03082586]
[1641761184565,4.737,143.96,143.88,2.03082586]
[1641761184762,3.0,143.96,143.88,2.03082586]
[1641761184963,3.0,143.96,143.88,3.76782586]
[1641761185162,13.4232,143.96,143.88,14.19052586]
[1641761185565,3.0,143.96,143.88,14.19052586]
[1641761185866,0.25,143.95,143.88,12.4097]
[1641761186065,25.6931,143.96,143.88,10.6727]
[1641761186464,35.6331,143.96,143.88,10.6727]
[1641761186964,0.26,143.95,143.88,41.62314712]
[1641761188267,0.51,143.95,143.88,41.62314712]
[1641761188468,0.51,143.95,143.88,10.6727]
[1641761189469,0.51,143.95,143.89,1.78082586]
[1641761190372,0.25,143.95,143.89,1.78082586]
[1641761190768,0.25,143.95,143.88,40.13637545]